[Event "Titled Tuesday Blitz June 13 Early 2023"]
[White "Lehtosaari, Mauri"]
[Black "Toczek, Grzegorz"]
[WhiteFideId "501999"]
[BlackFideId "1106457"]
[WhiteElo "2547"]
[BlackElo "2093"]
[Result "1-0"]
[Round "8"]
[TimeControl "180+2"]
[Date "2023.06.13"]
[WhiteClock "0:00:29"]
[BlackClock "0:01:06"]
[Board "117"]

1. d4 {[%clk 0:02:47]}  Nf6 {[%clk 0:02:57]} 2. Nf3 {[%clk 0:02:48]}  g6 {[%clk 0:02:57]} 3. Bg5 {[%clk 0:02:49]}  Bg7 {[%clk 0:02:57]} 4. c3 {[%clk 0:02:46]}  O-O {[%clk 0:02:56]} 5. e3 {[%clk 0:02:43]}  d6 {[%clk 0:02:56]} 6. Nbd2 {[%clk 0:02:43]}  e5 {[%clk 0:02:52]} 7. Bc4 {[%clk 0:02:42]}  Nbd7 {[%clk 0:02:51]} 8. O-O {[%clk 0:02:42]}  c6 {[%clk 0:02:51]} 9. dxe5 {[%clk 0:02:41]}  dxe5 {[%clk 0:02:51]} 10. Ne4 {[%clk 0:02:41]}  Qc7 {[%clk 0:02:48]} 11. Qd6 {[%clk 0:02:35]}  Qxd6 {[%clk 0:02:42]} 12. Nxd6 {[%clk 0:02:36]}  e4 {[%clk 0:02:35]} 13. Nd2 {[%clk 0:02:26]}  Ne5 {[%clk 0:02:34]} 14. Bxf6 {[%clk 0:01:54]}  Bxf6 {[%clk 0:02:33]} 15. N2xe4 {[%clk 0:01:54]}  Be7 {[%clk 0:02:32]} 16. Nxc8 {[%clk 0:01:52]}  Raxc8 {[%clk 0:02:30]} 17. Bb3 {[%clk 0:01:50]}  Nd3 {[%clk 0:02:25]} 18. Rab1 {[%clk 0:01:48]}  Kg7 {[%clk 0:02:20]} 19. Rfd1 {[%clk 0:01:48]}  Rcd8 {[%clk 0:02:17]} 20. Rd2 {[%clk 0:01:37]}  f5 {[%clk 0:02:17]} 21. Ng3 {[%clk 0:01:31]}  Nc5 {[%clk 0:02:09]} 22. Rbd1 {[%clk 0:01:28]}  Rxd2 {[%clk 0:01:42]} 23. Rxd2 {[%clk 0:01:28]}  Rd8 {[%clk 0:01:43]} 24. Rxd8 {[%clk 0:01:27]}  Bxd8 {[%clk 0:01:43]} 25. Bc2 {[%clk 0:01:16]}  Kf6 {[%clk 0:01:42]} 26. Kf1 {[%clk 0:01:15]}  Ke6 {[%clk 0:01:42]} 27. Ne2 {[%clk 0:01:15]}  Ke5 {[%clk 0:01:42]} 28. Nf4 {[%clk 0:01:14]}  Bf6 {[%clk 0:01:38]} 29. Ke2 {[%clk 0:01:10]}  Kd6 {[%clk 0:01:37]} 30. g3 {[%clk 0:01:08]}  b5 {[%clk 0:01:37]} 31. Bb3 {[%clk 0:01:02]}  Na4 {[%clk 0:01:25]} 32. Bxa4 {[%clk 0:01:01]}  bxa4 {[%clk 0:01:26]} 33. Kd3 {[%clk 0:00:59]}  Ke5 {[%clk 0:01:16]} 34. f3 {[%clk 0:00:55]}  Be7 {[%clk 0:01:16]} 35. Kc4 {[%clk 0:00:54]}  g5 {[%clk 0:01:13]} 36. Nd3+ {[%clk 0:00:54]}  Kd6 {[%clk 0:01:13]} 37. Nc5 {[%clk 0:00:51]}  a3 {[%clk 0:01:13]} 38. b4 {[%clk 0:00:46]}  h5 {[%clk 0:01:09]} 39. Nb3 {[%clk 0:00:44]}  Ke5 {[%clk 0:00:59]} 40. Nd4 {[%clk 0:00:43]}  c5 {[%clk 0:00:55]} 41. bxc5 {[%clk 0:00:43]}  g4 {[%clk 0:00:55]} 42. Nc6+ {[%clk 0:00:37]}  Ke6 {[%clk 0:00:55]} 43. fxg4 {[%clk 0:00:28]}  f4 {[%clk 0:00:54]} 44. exf4 {[%clk 0:00:26]}  Bh4 {[%clk 0:00:52]} 45. gxh4 {[%clk 0:00:25]}  hxg4 {[%clk 0:00:53]} 46. Nd4+ {[%clk 0:00:24]}  Kd7 {[%clk 0:00:52]} 47. Kd5 {[%clk 0:00:24]}  g3 {[%clk 0:00:53]} 48. hxg3 {[%clk 0:00:24]}  Kc7 {[%clk 0:00:54]} 49. g4 {[%clk 0:00:24]}  a5 {[%clk 0:00:55]} 50. f5 {[%clk 0:00:24]}  a4 {[%clk 0:00:56]} 51. Kc4 {[%clk 0:00:24]}  Kb7 {[%clk 0:00:56]} 52. Kb4 {[%clk 0:00:25]}  Ka6 {[%clk 0:00:57]} 53. Kxa4 {[%clk 0:00:25]}  Kb7 {[%clk 0:00:57]} 54. Kxa3 {[%clk 0:00:25]}  Ka6 {[%clk 0:00:58]} 55. Kb4 {[%clk 0:00:26]}  Ka7 {[%clk 0:00:58]} 56. g5 {[%clk 0:00:27]}  Kb7 {[%clk 0:00:59]} 57. Kb5 {[%clk 0:00:27]}  Ka7 {[%clk 0:01:00]} 58. a4 {[%clk 0:00:27]}  Kb7 {[%clk 0:01:00]} 59. a5 {[%clk 0:00:28]}  Ka7 {[%clk 0:01:01]} 60. h5 {[%clk 0:00:28]}  Kb7 {[%clk 0:01:02]} 61. h6 {[%clk 0:00:28]}  Ka7 {[%clk 0:01:03]} 62. h7 {[%clk 0:00:29]}  Kb7 {[%clk 0:01:04]} 63. h8=Q {[%clk 0:00:28]}  Ka7 {[%clk 0:01:05]} 64. Qh7+ {[%clk 0:00:29]}  Ka8 {[%clk 0:01:05]} 65. Kb6 {[%clk 0:00:29]}  Kb8 {[%clk 0:01:06]} 66. Qh8# {[%clk 0:00:29]} 1-0


[Site "https://www.chess.com"]

[Event "Titled Tuesday Blitz June 13 Early 2023"]
[White "Shuvalov, Evgenij"]
[Black "LeoLV10"]
[WhiteFideId "4187237"]
[WhiteElo "2080"]
[BlackElo "2423"]
[Result "1/2-1/2"]
[Round "8"]
[TimeControl "180+2"]
[Date "2023.06.13"]
[WhiteClock "0:00:10"]
[BlackClock "0:00:18"]
[Board "118"]

1. d4 {[%clk 0:03:00]}  Nf6 {[%clk 0:02:59]} 2. c4 {[%clk 0:03:01]}  e6 {[%clk 0:02:59]} 3. Nc3 {[%clk 0:03:00]}  d5 {[%clk 0:02:59]} 4. cxd5 {[%clk 0:02:59]}  exd5 {[%clk 0:03:00]} 5. Bg5 {[%clk 0:02:59]}  c6 {[%clk 0:03:00]} 6. e3 {[%clk 0:02:59]}  Nbd7 {[%clk 0:02:59]} 7. Bd3 {[%clk 0:02:58]}  h6 {[%clk 0:03:00]} 8. Bh4 {[%clk 0:02:58]}  Be7 {[%clk 0:03:00]} 9. Nge2 {[%clk 0:02:58]}  O-O {[%clk 0:02:56]} 10. f3 {[%clk 0:02:54]}  Re8 {[%clk 0:02:56]} 11. O-O {[%clk 0:02:53]}  Qc7 {[%clk 0:02:50]} 12. Rc1 {[%clk 0:02:49]}  a6 {[%clk 0:02:50]} 13. e4 {[%clk 0:02:35]}  dxe4 {[%clk 0:02:37]} 14. fxe4 {[%clk 0:02:35]}  Qb6 {[%clk 0:02:38]} 15. Qe1 {[%clk 0:01:57]}  Ne5 {[%clk 0:02:25]} 16. Bb1 {[%clk 0:01:46]}  Ng6 {[%clk 0:02:24]} 17. Bg3 {[%clk 0:01:36]}  Qxb2 {[%clk 0:02:22]} 18. Qf2 {[%clk 0:01:23]}  Be6 {[%clk 0:02:02]} 19. h3 {[%clk 0:01:16]}  Rad8 {[%clk 0:01:51]} 20. e5 {[%clk 0:01:04]}  Nd5 {[%clk 0:01:46]} 21. Bf5 {[%clk 0:00:49]}  Nxc3 {[%clk 0:01:27]} 22. Rxc3 {[%clk 0:00:22]}  Bxf5 {[%clk 0:01:26]} 23. Qxf5 {[%clk 0:00:23]}  Qxe2 {[%clk 0:01:26]} 24. Qxf7+ {[%clk 0:00:23]}  Kh7 {[%clk 0:01:27]} 25. Rcf3 {[%clk 0:00:20]}  Rf8 {[%clk 0:01:22]} 26. Qb3 {[%clk 0:00:20]}  Rxf3 {[%clk 0:01:21]} 27. Rxf3 {[%clk 0:00:21]}  Rxd4 {[%clk 0:01:16]} 28. Qxb7 {[%clk 0:00:19]}  Rb4 {[%clk 0:00:57]} 29. Qxc6 {[%clk 0:00:17]}  Rb1+ {[%clk 0:00:39]} 30. Kh2 {[%clk 0:00:17]}  Nxe5 {[%clk 0:00:37]} 31. Bxe5 {[%clk 0:00:13]}  Qxe5+ {[%clk 0:00:38]} 32. Rg3 {[%clk 0:00:12]}  Rb2 {[%clk 0:00:18]} 33. Qg6+ {[%clk 0:00:10]}  Kg8 {[%clk 0:00:18]} 34. Qe8+ {[%clk 0:00:10]}  Kh7 {[%clk 0:00:18]} 35. Qg6+ {[%clk 0:00:10]}  Kh8 {[%clk 0:00:18]} 36. Qe8+ {[%clk 0:00:10]}  Kh7 {[%clk 0:00:18]} 37. Qg6+ {[%clk 0:00:10]} 1/2-1/2


[Site "https://www.chess.com"]

[Event "Titled Tuesday Blitz June 13 Early 2023"]
[White "Gomez Barrera, Javiera Belen"]
[Black "Omelja, Artem"]
[WhiteFideId "3418723"]
[BlackFideId "14119846"]
[WhiteElo "2119"]
[BlackElo "2404"]
[Result "0-1"]
[Round "8"]
[TimeControl "180+2"]
[Date "2023.06.13"]
[WhiteClock "0:00:00"]
[BlackClock "0:00:04"]
[Board "119"]

1. e4 {[%clk 0:02:58]}  e5 {[%clk 0:02:59]} 2. Nf3 {[%clk 0:02:58]}  Nc6 {[%clk 0:02:57]} 3. Bc4 {[%clk 0:02:57]}  Bc5 {[%clk 0:02:57]} 4. c3 {[%clk 0:02:57]}  Nf6 {[%clk 0:02:55]} 5. d3 {[%clk 0:02:58]}  d6 {[%clk 0:02:53]} 6. O-O {[%clk 0:02:57]}  h6 {[%clk 0:02:51]} 7. Re1 {[%clk 0:02:55]}  Bg4 {[%clk 0:02:49]} 8. b4 {[%clk 0:02:52]}  Bb6 {[%clk 0:02:49]} 9. a4 {[%clk 0:02:52]}  a5 {[%clk 0:02:49]} 10. b5 {[%clk 0:02:52]}  Ne7 {[%clk 0:02:49]} 11. h3 {[%clk 0:02:46]}  Bh5 {[%clk 0:02:49]} 12. Nbd2 {[%clk 0:02:46]}  g5 {[%clk 0:02:48]} 13. Nf1 {[%clk 0:02:42]}  g4 {[%clk 0:02:48]} 14. hxg4 {[%clk 0:02:40]}  Bxg4 {[%clk 0:02:48]} 15. d4 {[%clk 0:02:20]}  exd4 {[%clk 0:02:41]} 16. cxd4 {[%clk 0:02:19]}  Bxf3 {[%clk 0:02:40]} 17. gxf3 {[%clk 0:02:19]}  Qd7 {[%clk 0:02:35]} 18. e5 {[%clk 0:02:10]}  Rg8+ {[%clk 0:02:35]} 19. Ng3 {[%clk 0:01:57]}  dxe5 {[%clk 0:02:34]} 20. Qb3 {[%clk 0:01:52]}  O-O-O {[%clk 0:01:07]} 21. Bxf7 {[%clk 0:01:51]}  Kb8 {[%clk 0:01:07]} 22. Be6 {[%clk 0:01:37]}  Qd6 {[%clk 0:00:53]} 23. Bxg8 {[%clk 0:01:17]}  Rxg8 {[%clk 0:00:49]} 24. Kf1 {[%clk 0:00:52]}  Bxd4 {[%clk 0:00:44]} 25. Ba3 {[%clk 0:00:45]}  Qd5 {[%clk 0:00:36]} 26. Rab1 {[%clk 0:00:31]}  Qxb3 {[%clk 0:00:08]} 27. Rxb3 {[%clk 0:00:32]}  Ned5 {[%clk 0:00:09]} 28. Bb2 {[%clk 0:00:25]}  h5 {[%clk 0:00:07]} 29. Nf5 {[%clk 0:00:21]}  Bxb2 {[%clk 0:00:06]} 30. Rxb2 {[%clk 0:00:22]}  Rg5 {[%clk 0:00:04]} 31. Rxe5 {[%clk 0:00:18]}  Ka7 {[%clk 0:00:03]} 32. Rd2 {[%clk 0:00:12]}  Nb6 {[%clk 0:00:03]} 33. Rd4 {[%clk 0:00:09]}  Nfd7 {[%clk 0:00:03]} 34. Re7 {[%clk 0:00:08]}  Rxf5 {[%clk 0:00:03]} 35. Rexd7 {[%clk 0:00:08]}  Nxd7 {[%clk 0:00:03]} 36. Rxd7 {[%clk 0:00:09]}  Rxf3 {[%clk 0:00:04]} 37. Rxc7 {[%clk 0:00:09]}  Rf4 {[%clk 0:00:04]} 38. Rc5 {[%clk 0:00:10]}  h4 {[%clk 0:00:03]} 39. Kg2 {[%clk 0:00:07]}  Rxa4 {[%clk 0:00:03]} 40. Rf5 {[%clk 0:00:04]}  Kb6 {[%clk 0:00:03]} 41. f4 {[%clk 0:00:05]}  Rb4 {[%clk 0:00:03]} 42. Kh3 {[%clk 0:00:00]}  a4 {[%clk 0:00:04]} 0-1


[Site "https://www.chess.com"]

[Event "Titled Tuesday Blitz June 13 Early 2023"]
[White "Matveeva, Olga"]
[Black "Srdanovic, Jovana"]
[WhiteFideId "24107018"]
[BlackFideId "954810"]
[WhiteElo "2009"]
[BlackElo "2155"]
[Result "1-0"]
[Round "8"]
[TimeControl "180+2"]
[Date "2023.06.13"]
[WhiteClock "0:00:17"]
[BlackClock "0:00:12"]
[Board "122"]

1. d4 {[%clk 0:03:00]}  d5 {[%clk 0:02:59]} 2. c4 {[%clk 0:03:01]}  c6 {[%clk 0:02:58]} 3. Nf3 {[%clk 0:03:01]}  Nf6 {[%clk 0:02:59]} 4. e3 {[%clk 0:03:02]}  Bf5 {[%clk 0:02:57]} 5. Nc3 {[%clk 0:03:01]}  e6 {[%clk 0:02:57]} 6. b3 {[%clk 0:02:57]}  Bd6 {[%clk 0:02:52]} 7. Bb2 {[%clk 0:02:56]}  O-O {[%clk 0:02:50]} 8. Be2 {[%clk 0:02:53]}  Nbd7 {[%clk 0:02:49]} 9. O-O {[%clk 0:02:52]}  h6 {[%clk 0:02:49]} 10. Rc1 {[%clk 0:02:48]}  Qe7 {[%clk 0:02:26]} 11. Nh4 {[%clk 0:02:33]}  Bh7 {[%clk 0:02:13]} 12. f4 {[%clk 0:02:30]}  Ne4 {[%clk 0:01:59]} 13. Nf3 {[%clk 0:02:23]}  Ndf6 {[%clk 0:01:31]} 14. Ne5 {[%clk 0:02:20]}  Nxc3 {[%clk 0:01:16]} 15. Bxc3 {[%clk 0:02:19]}  Ba3 {[%clk 0:01:14]} 16. Ra1 {[%clk 0:02:18]}  Ne4 {[%clk 0:01:14]} 17. Qe1 {[%clk 0:02:07]}  f6 {[%clk 0:01:11]} 18. Nd3 {[%clk 0:02:01]}  b6 {[%clk 0:00:42]} 19. Bb4 {[%clk 0:01:49]}  Bxb4 {[%clk 0:00:40]} 20. Qxb4 {[%clk 0:01:49]}  c5 {[%clk 0:00:38]} 21. Qa3 {[%clk 0:01:44]}  Nc3 {[%clk 0:00:35]} 22. Qb2 {[%clk 0:01:25]}  Nxe2+ {[%clk 0:00:34]} 23. Qxe2 {[%clk 0:01:26]}  dxc4 {[%clk 0:00:34]} 24. bxc4 {[%clk 0:01:25]}  Rfd8 {[%clk 0:00:31]} 25. f5 {[%clk 0:00:35]}  Bxf5 {[%clk 0:00:24]} 26. e4 {[%clk 0:00:34]}  Bh7 {[%clk 0:00:22]} 27. dxc5 {[%clk 0:00:18]}  Rd4 {[%clk 0:00:20]} 28. Rad1 {[%clk 0:00:17]}  Rxe4 {[%clk 0:00:19]} 29. Qf3 {[%clk 0:00:17]}  Rxc4 {[%clk 0:00:19]} 30. Qxa8+ {[%clk 0:00:16]}  Kf7 {[%clk 0:00:18]} 31. Qf3 {[%clk 0:00:16]}  bxc5 {[%clk 0:00:15]} 32. Ne5+ {[%clk 0:00:16]}  Kg8 {[%clk 0:00:12]} 33. Nxc4 {[%clk 0:00:17]} 1-0


[Site "https://www.chess.com"]

[Event "Titled Tuesday Blitz June 13 Early 2023"]
[White "Chandreyee, Hajra"]
[Black "Zavgorodniy, Sergiy"]
[WhiteFideId "5056535"]
[BlackFideId "14110148"]
[WhiteElo "1725"]
[BlackElo "2402"]
[Result "0-1"]
[Round "8"]
[TimeControl "180+2"]
[Date "2023.06.13"]
[WhiteClock "0:01:16"]
[BlackClock "0:02:24"]
[Board "123"]

1. e4 {[%clk 0:03:00]}  c6 {[%clk 0:02:56]} 2. d4 {[%clk 0:02:59]}  d5 {[%clk 0:02:56]} 3. exd5 {[%clk 0:03:00]}  cxd5 {[%clk 0:02:56]} 4. c4 {[%clk 0:03:00]}  Nf6 {[%clk 0:02:56]} 5. Nc3 {[%clk 0:02:59]}  e6 {[%clk 0:02:56]} 6. Nf3 {[%clk 0:02:58]}  Be7 {[%clk 0:02:56]} 7. cxd5 {[%clk 0:02:50]}  Nxd5 {[%clk 0:02:57]} 8. Bb5+ {[%clk 0:02:49]}  Bd7 {[%clk 0:02:57]} 9. Bxd7+ {[%clk 0:02:46]}  Nxd7 {[%clk 0:02:57]} 10. Nxd5 {[%clk 0:02:46]}  exd5 {[%clk 0:02:58]} 11. O-O {[%clk 0:02:46]}  O-O {[%clk 0:02:58]} 12. Bf4 {[%clk 0:02:43]}  Qb6 {[%clk 0:02:57]} 13. Qb3 {[%clk 0:02:42]}  Qxb3 {[%clk 0:02:57]} 14. axb3 {[%clk 0:02:41]}  Rfc8 {[%clk 0:02:57]} 15. Rfc1 {[%clk 0:02:39]}  a6 {[%clk 0:02:56]} 16. Bc7 {[%clk 0:02:30]}  f6 {[%clk 0:02:54]} 17. Rc3 {[%clk 0:02:25]}  Kf7 {[%clk 0:02:54]} 18. Rac1 {[%clk 0:02:24]}  g5 {[%clk 0:02:53]} 19. Ne1 {[%clk 0:02:12]}  Bb4 {[%clk 0:02:53]} 20. R3c2 {[%clk 0:02:09]}  Nf8 {[%clk 0:02:49]} 21. Nd3 {[%clk 0:02:05]}  Be7 {[%clk 0:02:49]} 22. Bb6 {[%clk 0:01:59]}  Rxc2 {[%clk 0:02:49]} 23. Rxc2 {[%clk 0:01:59]}  Ne6 {[%clk 0:02:49]} 24. Kf1 {[%clk 0:01:54]}  Bd6 {[%clk 0:02:49]} 25. h3 {[%clk 0:01:47]}  h5 {[%clk 0:02:49]} 26. g4 {[%clk 0:01:46]}  hxg4 {[%clk 0:02:48]} 27. hxg4 {[%clk 0:01:46]}  Rh8 {[%clk 0:02:48]} 28. Kg2 {[%clk 0:01:44]}  Rh4 {[%clk 0:02:44]} 29. Kf3 {[%clk 0:01:32]}  Rh3+ {[%clk 0:02:40]} 30. Ke2 {[%clk 0:01:32]}  Rh8 {[%clk 0:02:32]} 31. Bc5 {[%clk 0:01:23]}  Bxc5 {[%clk 0:02:29]} 32. dxc5 {[%clk 0:01:21]}  Nd4+ {[%clk 0:02:29]} 33. Kd2 {[%clk 0:01:21]}  Nxc2 {[%clk 0:02:30]} 34. Kxc2 {[%clk 0:01:22]}  Ke6 {[%clk 0:02:29]} 35. b4 {[%clk 0:01:22]}  d4 {[%clk 0:02:28]} 36. c6 {[%clk 0:01:18]}  bxc6 {[%clk 0:02:25]} 37. Nc5+ {[%clk 0:01:19]}  Kd6 {[%clk 0:02:24]} 38. Nxa6 {[%clk 0:01:16]}  Rh2 {[%clk 0:02:24]} 0-1


[Site "https://www.chess.com"]

[Event "Titled Tuesday Blitz June 13 Early 2023"]
[White "Miller, Luke C"]
[Black "Devaev, Alexander"]
[WhiteFideId "2096935"]
[BlackFideId "4169395"]
[WhiteElo "1836"]
[BlackElo "2172"]
[Result "1-0"]
[Round "8"]
[TimeControl "180+2"]
[Date "2023.06.13"]
[WhiteClock "0:00:11"]
[BlackClock "0:00:00"]
[Board "125"]

1. e4 {[%clk 0:02:57]}  c6 {[%clk 0:02:39]} 2. d4 {[%clk 0:02:53]}  d5 {[%clk 0:02:39]} 3. f3 {[%clk 0:02:52]}  dxe4 {[%clk 0:02:39]} 4. fxe4 {[%clk 0:02:53]}  e5 {[%clk 0:02:39]} 5. Nf3 {[%clk 0:02:53]}  Be6 {[%clk 0:02:40]} 6. c3 {[%clk 0:02:46]}  Nd7 {[%clk 0:02:39]} 7. Ng5 {[%clk 0:02:35]}  Nh6 {[%clk 0:01:53]} 8. Nxe6 {[%clk 0:02:29]}  Qh4+ {[%clk 0:01:53]} 9. Kd2 {[%clk 0:02:11]}  fxe6 {[%clk 0:01:52]} 10. Bd3 {[%clk 0:01:59]}  exd4 {[%clk 0:01:49]} 11. cxd4 {[%clk 0:01:58]}  Qf2+ {[%clk 0:01:43]} 12. Kc3 {[%clk 0:01:49]}  c5 {[%clk 0:01:21]} 13. Bb5 {[%clk 0:01:44]}  O-O-O {[%clk 0:01:01]} 14. Rf1 {[%clk 0:01:23]}  Qxd4+ {[%clk 0:00:47]} 15. Qxd4 {[%clk 0:01:24]}  cxd4+ {[%clk 0:00:48]} 16. Kxd4 {[%clk 0:01:17]}  Nc5+ {[%clk 0:00:47]} 17. Ke3 {[%clk 0:01:15]}  Ng4+ {[%clk 0:00:44]} 18. Kf4 {[%clk 0:01:09]}  Nxh2 {[%clk 0:00:44]} 19. Rh1 {[%clk 0:01:08]}  a6 {[%clk 0:00:37]} 20. Bxa6 {[%clk 0:00:59]}  g5+ {[%clk 0:00:25]} 21. Kxg5 {[%clk 0:00:53]}  Be7+ {[%clk 0:00:25]} 22. Kh5 {[%clk 0:00:51]}  bxa6 {[%clk 0:00:14]} 23. Rxh2 {[%clk 0:00:50]}  Rd1 {[%clk 0:00:15]} 24. Nc3 {[%clk 0:00:49]}  Re1 {[%clk 0:00:10]} 25. Rb1 {[%clk 0:00:46]}  Bd6 {[%clk 0:00:08]} 26. Rh3 {[%clk 0:00:33]}  Nxe4 {[%clk 0:00:08]} 27. Nxe4 {[%clk 0:00:24]}  Rxe4 {[%clk 0:00:09]} 28. Bg5 {[%clk 0:00:24]}  Rg8 {[%clk 0:00:07]} 29. Rc1+ {[%clk 0:00:20]}  Kb7 {[%clk 0:00:07]} 30. Bh4 {[%clk 0:00:17]}  Re5+ {[%clk 0:00:07]} 31. Kh6 {[%clk 0:00:17]}  Rxg2 {[%clk 0:00:05]} 32. Rd1 {[%clk 0:00:15]}  Bc7 {[%clk 0:00:03]} 33. Rd7 {[%clk 0:00:14]}  Rd5 {[%clk 0:00:03]} 34. Rxh7 {[%clk 0:00:14]}  Rd4 {[%clk 0:00:02]} 35. Bg3 {[%clk 0:00:14]}  Rxg3 {[%clk 0:00:01]} 36. Rxg3 {[%clk 0:00:15]}  Rh4+ {[%clk 0:00:01]} 37. Kg6 {[%clk 0:00:15]}  Rxh7 {[%clk 0:00:01]} 38. Rb3+ {[%clk 0:00:15]}  Kc6 {[%clk 0:00:01]} 39. Kxh7 {[%clk 0:00:16]}  Bd6 {[%clk 0:00:02]} 40. Rc3+ {[%clk 0:00:16]}  Kd5 {[%clk 0:00:02]} 41. Rd3+ {[%clk 0:00:17]}  Kc5 {[%clk 0:00:02]} 42. Kg6 {[%clk 0:00:17]}  Be5 {[%clk 0:00:03]} 43. Rb3 {[%clk 0:00:15]}  Bd4 {[%clk 0:00:03]} 44. a3 {[%clk 0:00:12]}  e5 {[%clk 0:00:03]} 45. Kf5 {[%clk 0:00:11]}  a5 {[%clk 0:00:04]} 46. Ke4 {[%clk 0:00:10]}  Kc4 {[%clk 0:00:04]} 47. Rb7 {[%clk 0:00:10]}  Kc5 {[%clk 0:00:04]} 48. Rc7+ {[%clk 0:00:10]}  Kb5 {[%clk 0:00:04]} 49. Rc2 {[%clk 0:00:11]}  Ka4 {[%clk 0:00:04]} 50. Rg2 {[%clk 0:00:12]}  Kb3 {[%clk 0:00:05]} 51. Kd5 {[%clk 0:00:11]}  a4 {[%clk 0:00:05]} 52. Kc6 {[%clk 0:00:11]}  Bxb2 {[%clk 0:00:05]} 53. Rg3+ {[%clk 0:00:10]}  Bc3 {[%clk 0:00:06]} 54. Kb5 {[%clk 0:00:11]}  e4 {[%clk 0:00:06]} 55. Re3 {[%clk 0:00:10]}  Kc2 {[%clk 0:00:04]} 56. Kxa4 {[%clk 0:00:11]}  Bd4 {[%clk 0:00:03]} 57. Rxe4 {[%clk 0:00:11]}  Kd3 {[%clk 0:00:04]} 58. Rxd4+ {[%clk 0:00:10]}  Kxd4 {[%clk 0:00:03]} 59. Kb5 {[%clk 0:00:11]}  Kd5 {[%clk 0:00:04]} 60. a4 {[%clk 0:00:11]}  Kd6 {[%clk 0:00:05]} 61. Kb6 {[%clk 0:00:11]}  Kd7 {[%clk 0:00:00]} 62. Kb7 {[%clk 0:00:11]} 1-0


[Site "https://www.chess.com"]

[Event "Titled Tuesday Blitz June 13 Early 2023"]
[White "sebastianmarinp"]
[Black "Cruz Mendez, Jean Marco"]
[BlackFideId "3526402"]
[WhiteElo "2388"]
[BlackElo "2064"]
[Result "1-0"]
[Round "8"]
[TimeControl "180+2"]
[Date "2023.06.13"]
[WhiteClock "0:01:54"]
[BlackClock "0:01:42"]
[Board "127"]

1. e4 {[%clk 0:02:59]}  e5 {[%clk 0:02:59]} 2. Nf3 {[%clk 0:02:58]}  Nc6 {[%clk 0:02:58]} 3. Bb5 {[%clk 0:02:58]}  a6 {[%clk 0:02:58]} 4. Ba4 {[%clk 0:02:58]}  Nf6 {[%clk 0:02:58]} 5. O-O {[%clk 0:02:58]}  Be7 {[%clk 0:02:58]} 6. Re1 {[%clk 0:02:57]}  b5 {[%clk 0:02:58]} 7. Bb3 {[%clk 0:02:57]}  O-O {[%clk 0:02:58]} 8. h3 {[%clk 0:02:56]}  Bb7 {[%clk 0:02:55]} 9. d3 {[%clk 0:02:49]}  d5 {[%clk 0:02:54]} 10. exd5 {[%clk 0:02:47]}  Nxd5 {[%clk 0:02:55]} 11. Nxe5 {[%clk 0:02:46]}  Nxe5 {[%clk 0:02:55]} 12. Rxe5 {[%clk 0:02:47]}  Qd7 {[%clk 0:02:25]} 13. Nd2 {[%clk 0:02:35]}  Nf4 {[%clk 0:02:24]} 14. Ne4 {[%clk 0:02:25]}  Nxg2 {[%clk 0:02:14]} 15. Kxg2 {[%clk 0:02:17]}  a5 {[%clk 0:02:15]} 16. Qg4 {[%clk 0:01:53]}  Qxg4+ {[%clk 0:01:42]} 17. hxg4 {[%clk 0:01:54]} 1-0


[Site "https://www.chess.com"]

[Event "Titled Tuesday Blitz June 13 Early 2023"]
[White "Slavin, Alexey"]
[Black "Gomes, Luiz Alexandre de Souza"]
[WhiteFideId "24104388"]
[BlackFideId "2102790"]
[WhiteElo "2264"]
[BlackElo "2505"]
[Result "1-0"]
[Round "8"]
[TimeControl "180+2"]
[Date "2023.06.13"]
[WhiteClock "0:01:20"]
[BlackClock "0:01:34"]
[Board "130"]

1. e4 {[%clk 0:02:57]}  c5 {[%clk 0:02:59]} 2. g3 {[%clk 0:02:57]}  d6 {[%clk 0:03:00]} 3. Bg2 {[%clk 0:02:57]}  Nc6 {[%clk 0:03:00]} 4. Ne2 {[%clk 0:02:57]}  g6 {[%clk 0:03:01]} 5. O-O {[%clk 0:02:58]}  Bg7 {[%clk 0:03:02]} 6. Nbc3 {[%clk 0:02:58]}  Nf6 {[%clk 0:03:02]} 7. a3 {[%clk 0:02:58]}  O-O {[%clk 0:03:02]} 8. Rb1 {[%clk 0:02:59]}  b6 {[%clk 0:03:02]} 9. b4 {[%clk 0:02:59]}  Bb7 {[%clk 0:03:02]} 10. d3 {[%clk 0:02:58]}  e6 {[%clk 0:03:01]} 11. e5 {[%clk 0:02:49]}  dxe5 {[%clk 0:02:59]} 12. bxc5 {[%clk 0:02:49]}  Nd5 {[%clk 0:02:52]} 13. Ne4 {[%clk 0:02:39]}  Rb8 {[%clk 0:02:39]} 14. c4 {[%clk 0:02:37]}  Nde7 {[%clk 0:02:27]} 15. Nd6 {[%clk 0:02:36]}  Ba8 {[%clk 0:02:26]} 16. Ne4 {[%clk 0:02:15]}  bxc5 {[%clk 0:02:23]} 17. Rxb8 {[%clk 0:02:13]}  Qxb8 {[%clk 0:02:23]} 18. Nxc5 {[%clk 0:02:10]}  Rd8 {[%clk 0:02:23]} 19. Qa4 {[%clk 0:02:02]}  Nd4 {[%clk 0:02:18]} 20. Nxd4 {[%clk 0:01:57]}  Bxg2 {[%clk 0:01:58]} 21. Kxg2 {[%clk 0:01:54]}  exd4 {[%clk 0:01:53]} 22. Bg5 {[%clk 0:01:39]}  Re8 {[%clk 0:01:39]} 23. Rb1 {[%clk 0:01:21]}  Qc7 {[%clk 0:01:34]} 24. Qxe8+ {[%clk 0:01:20]} 1-0


[Site "https://www.chess.com"]

[Event "Titled Tuesday Blitz June 13 Early 2023"]
[White "Ai, Evan"]
[Black "Shapiro, Daniel"]
[WhiteFideId "2094770"]
[BlackFideId "2001780"]
[WhiteElo "1963"]
[BlackElo "2353"]
[Result "1-0"]
[Round "8"]
[TimeControl "180+2"]
[Date "2023.06.13"]
[WhiteClock "0:01:57"]
[BlackClock "0:00:00"]
[Board "131"]

1. e4 {[%clk 0:02:59]}  e5 {[%clk 0:02:59]} 2. Nf3 {[%clk 0:02:59]}  Nc6 {[%clk 0:02:59]} 3. Bb5 {[%clk 0:02:59]}  a6 {[%clk 0:02:59]} 4. Ba4 {[%clk 0:03:00]}  Nf6 {[%clk 0:02:59]} 5. O-O {[%clk 0:03:00]}  Be7 {[%clk 0:02:58]} 6. Re1 {[%clk 0:03:00]}  b5 {[%clk 0:02:58]} 7. Bb3 {[%clk 0:03:00]}  d6 {[%clk 0:02:58]} 8. c3 {[%clk 0:03:00]}  O-O {[%clk 0:02:58]} 9. h3 {[%clk 0:03:01]}  Na5 {[%clk 0:02:55]} 10. Bc2 {[%clk 0:03:01]}  c5 {[%clk 0:02:56]} 11. d4 {[%clk 0:03:02]}  Nd7 {[%clk 0:02:57]} 12. Nbd2 {[%clk 0:02:58]}  cxd4 {[%clk 0:02:56]} 13. cxd4 {[%clk 0:02:58]}  Nc6 {[%clk 0:02:57]} 14. d5 {[%clk 0:02:59]}  Nb4 {[%clk 0:02:57]} 15. Bb1 {[%clk 0:02:59]}  a5 {[%clk 0:02:58]} 16. Nf1 {[%clk 0:02:57]}  Nb6 {[%clk 0:02:36]} 17. a3 {[%clk 0:02:53]}  Na6 {[%clk 0:02:35]} 18. Bd3 {[%clk 0:02:52]}  Bd7 {[%clk 0:02:31]} 19. Qe2 {[%clk 0:02:44]}  Nc7 {[%clk 0:02:17]} 20. Be3 {[%clk 0:02:39]}  Rb8 {[%clk 0:02:11]} 21. Qd2 {[%clk 0:02:30]}  b4 {[%clk 0:00:45]} 22. axb4 {[%clk 0:02:27]}  axb4 {[%clk 0:00:45]} 23. Ra7 {[%clk 0:02:14]}  f5 {[%clk 0:00:43]} 24. Rc1 {[%clk 0:02:11]}  fxe4 {[%clk 0:00:38]} 25. Rcxc7 {[%clk 0:02:11]}  exd3 {[%clk 0:00:26]} 26. Bxb6 {[%clk 0:02:11]}  Rxf3 {[%clk 0:00:11]} 27. Rxd7 {[%clk 0:01:57]}  Qxb6 {[%clk 0:00:00]} 28. Rxe7 {[%clk 0:01:57]} 1-0


[Site "https://www.chess.com"]